fUSD/lending_fUSD_20250804
["ID","MTS","AMOUNT","RATE_DAILY","PERIOD"]
[377169548,1754266263843,-354.32920764,0.00049863,120]
[377169549,1754266263852,-992.0,0.00049863,120]
[377169550,1754266263861,-400.0,0.00049863,120]
[377169551,1754266263871,-400.0,0.00049863,120]
[377169552,1754266263880,-614.41,0.00049863,120]
[377169553,1754266263889,-638.57,0.00049863,120]
[377169554,1754266263899,-400.0,0.00049863,120]
[377169555,1754266263909,-400.0,0.00049863,120]
[377169556,1754266263919,-400.0,0.00049863,120]
[377169557,1754266263929,-1024.51,0.00049863,120]
[377169558,1754266263939,-513.84,0.00049863,120]
[377169559,1754266263948,-630.95,0.00049863,120]
[377169560,1754266263958,-400.0,0.00049863,120]
[377169561,1754266263967,-400.0,0.00049863,120]
[377169562,1754266263976,-510.13,0.00049863,120]
[377169563,1754266263986,-400.0,0.00049863,120]
[377169564,1754266263995,-473.08,0.00049863,60]
[377169565,1754266264005,-400.0,0.00049863,120]
[377169566,1754266264014,-400.0,0.00049863,120]
[377169567,1754266264024,-789.14,0.00049863,120]
[377169568,1754266264033,-670.88,0.00049863,120]
[377169569,1754266264043,-400.0,0.00049863,120]
[377169570,1754266264052,-491.05,0.00049863,120]
[377169571,1754266264061,-400.0,0.00049863,120]
[377169572,1754266264070,-400.0,0.00049863,120]
[377169573,1754266264079,-670.31,0.00049863,120]
[377169574,1754266264088,-400.0,0.00049863,120]
[377169575,1754266264098,-567.58,0.00049863,120]
[377169576,1754266264107,-400.0,0.00049863,120]
[377169577,1754266264116,-1338.8,0.00049863,120]
[377169578,1754266264126,-400.0,0.00049863,120]
[377169579,1754266264135,-1146.97,0.00049863,120]
[377169580,1754266264144,-400.0,0.00049863,120]
[377169581,1754266264153,-400.0,0.00049863,120]
[377169582,1754266264162,-604.37,0.00049863,120]
[377169583,1754266264171,-1094.27,0.00049863,120]
[377169584,1754266264180,-1247.42,0.00049863,120]
[377169585,1754266264194,-488.78,0.00049863,120]
[377169586,1754266264203,-400.0,0.00049863,120]
[377169587,1754266264213,-691.49,0.00049863,60]
[377169588,1754266264222,-400.0,0.00049863,120]
[377169589,1754266264231,-400.0,0.00049863,120]
[377169590,1754266264241,-1100.26,0.00049863,120]
[377169591,1754266264251,-400.0,0.00049863,120]
[377169592,1754266264261,-400.0,0.00049863,120]
[377169593,1754266264272,-3139.17,0.00049863,120]
[377169594,1754266264281,-1448.55,0.00049863,120]
[377169595,1754266264291,-400.0,0.00049863,120]
[377169596,1754266264300,-459.93502738,0.00049863,120]
[377169597,1754266264310,-400.0,0.00049863,120]
[377169598,1754266264319,-448.93,0.00049863,120]
[377169599,1754266264329,-400.0,0.00049863,120]
[377169600,1754266264338,-1098.45,0.00049863,120]
[377169601,1754266264348,-712.17,0.00049863,120]
[377169602,1754266264361,-400.0,0.00049863,120]
[377169603,1754266264371,-607.98,0.00049863,120]
[377169604,1754266264380,-400.0,0.00049863,120]
[377169605,1754266264390,-400.0,0.00049863,120]
[377169606,1754266264399,-400.0,0.00049863,120]
[377169607,1754266264408,-400.0,0.00049863,120]
[377169608,1754266264418,-400.0,0.00049863,120]
[377169609,1754266264427,-400.0,0.00049863,120]
[377169610,1754266264436,-478.08,0.00049863,120]
[377169611,1754266264446,-400.0,0.00049863,120]
[377169612,1754266264456,-1237.03,0.00049863,120]
[377169613,1754266264465,-1160.21,0.00049863,120]
[377169614,1754266264474,-400.0,0.00049863,120]
[377169615,1754266264485,-738.45,0.00049863,120]
[377169616,1754266264494,-400.0,0.00049863,120]
[377169617,1754266264503,-400.0,0.00049863,120]
[377169618,1754266264512,-701.08,0.00049863,120]
[377169619,1754266264521,-594.9,0.00049863,120]
[377169620,1754266264531,-416.84,0.00049863,120]
[377169621,1754266264540,-567.8,0.00049863,120]
[377169622,1754266264549,-190.10827122,0.00049863,120]
[377169623,1754266264559,-400.0,0.00049863,120]
[377169624,1754266264569,-1272.79,0.00049863,120]
[377169625,1754266264578,-400.0,0.00049863,120]
[377169626,1754266264588,-718.31,0.00049863,120]
[377169627,1754266264598,-400.0,0.00049863,120]
[377169628,1754266264607,-442.21,0.00049863,120]
[377169629,1754266264617,-506.64,0.00049863,120]
[377169630,1754266264626,-400.0,0.00049863,120]
[377169631,1754266264635,-400.0,0.00049863,120]
[377169632,1754266264645,-400.0,0.00049863,120]
[377169633,1754266264655,-400.0,0.00049863,120]
[377169634,1754266264664,-400.0,0.00049863,120]
[377169635,1754266264674,-881.69,0.00049863,120]
[377169636,1754266264683,-716.07,0.00049863,120]
[377169637,1754266264693,-400.0,0.00049863,120]
[377169638,1754266264703,-778.27,0.00049863,120]
[377169639,1754266264712,-400.0,0.00049863,120]
[377169640,1754266264724,-769.66,0.00049863,120]
[377169641,1754266264734,-739.68,0.00049863,120]
[377169642,1754266264744,-400.0,0.00049863,120]
[377169643,1754266264753,-596.82,0.00049863,120]
[377169644,1754266264763,-440.01,0.00049863,120]
[377169645,1754266264772,-400.0,0.00049863,120]
[377169646,1754266264781,-653.07,0.00049863,120]
[377169647,1754266264791,-400.0,0.00049863,120]
[377169648,1754266264800,-462.96552808,0.00049863,120]
[377169649,1754266264809,-624.22,0.00049863,120]
[377169650,1754266264818,-1169.69,0.00049863,120]
[377169651,1754266264827,-400.0,0.00049863,120]
[377169652,1754266264837,-400.0,0.00049863,120]
[377169653,1754266264846,-1172.43,0.00049863,120]
[377169654,1754266264855,-400.0,0.00049863,120]
[377169655,1754266264865,-400.0,0.00049863,120]
[377169656,1754266264874,-355.88581099,0.00049863,120]
[377169657,1754266264883,-400.0,0.00049863,120]
[377169658,1754266264892,-400.0,0.00049863,120]
[377169659,1754266264902,-400.0,0.00049863,120]
[377169660,1754266264911,-1317.98,0.00049863,120]
[377169661,1754266264920,-400.0,0.00049863,120]
[377169662,1754266264931,-782.27,0.00049863,120]
[377169663,1754266264948,-504.66,0.00049863,120]
[377169664,1754266264957,-506.35,0.00049863,120]
[377169665,1754266264966,-400.0,0.00049863,120]
[377169666,1754266264976,-455.79,0.00049863,120]
[377169667,1754266264985,-523.05668655,0.00049863,120]
[377169668,1754266264995,-400.0,0.00049863,120]
[377169669,1754266265004,-400.0,0.00049863,120]
[377169670,1754266265013,-400.0,0.00049863,120]
[377169671,1754266265022,-1138.31,0.00049863,120]
[377169672,1754266265031,-400.0,0.00049863,120]
[377169673,1754266265040,-400.0,0.00049863,120]
[377169674,1754266265049,-685.06,0.00049863,120]
[377169675,1754266265059,-400.0,0.00049863,120]
[377169676,1754266265068,-1082.26,0.00049863,120]
[377169677,1754266265077,-400.0,0.00049863,120]
[377169678,1754266265086,-400.0,0.00049863,120]
[377169679,1754266265095,-1137.3,0.00049863,120]
[377169680,1754266265104,-668.26,0.00049863,120]
[377169681,1754266265114,-912.95,0.00049863,120]
[377169682,1754266265123,-400.0,0.00049863,120]
[377169683,1754266265132,-1057.59,0.00049863,120]
[377169684,1754266265141,-400.0,0.00049863,120]
[377169685,1754266265151,-584.16,0.00049863,120]
[377169686,1754266265160,-623.29,0.00049863,120]
[377169687,1754266265169,-516.45776831,0.00049863,120]
[377169688,1754266265179,-400.0,0.00049863,120]
[377169689,1754266265191,-400.0,0.00049863,120]
[377169690,1754266265200,-400.0,0.00049863,120]
[377169691,1754266265210,-400.0,0.00049863,120]
[377169692,1754266265219,-538.49483066,0.00049863,120]
[377169693,1754266265229,-400.0,0.00049863,120]
[377169694,1754266265238,-400.0,0.00049863,120]
[377169695,1754266265248,-400.0,0.00049863,120]
[377169696,1754266265257,-430.71,0.00049863,120]
[377169697,1754266265267,-837.56,0.00049863,120]
[377169698,1754266265277,-805.41,0.00049863,120]
[377169699,1754266265286,-582.82,0.00049863,120]
[377169700,1754266265295,-723.73,0.00049863,120]
[377169701,1754266265305,-1017.53,0.00049863,120]
[377169702,1754266265314,-400.0,0.00049863,120]
[377169703,1754266265324,-400.0,0.00049863,120]
[377169704,1754266265334,-521.78,0.00049863,120]
[377169705,1754266265344,-400.0,0.00049863,120]
[377169706,1754266265354,-400.0,0.00049863,120]
[377169707,1754266265365,-458.72,0.00049863,120]
[377169708,1754266265374,-400.0,0.00049863,120]
[377169709,1754266265383,-400.0,0.00049863,120]
[377169710,1754266265393,-1032.15,0.00049863,120]
[377169711,1754266265402,-400.0,0.00049863,120]
[377169712,1754266265411,-1153.74,0.00049863,120]
[377169713,1754266265421,-400.0,0.00049863,120]
[377169714,1754266265430,-680.95,0.00049863,120]
[377169715,1754266265440,-400.0,0.00049863,120]
[377169716,1754266265449,-1189.36,0.00049863,120]
[377169717,1754266265458,-400.0,0.00049863,120]
[377169718,1754266265468,-905.71,0.00049863,120]
[377169719,1754266265477,-560.29,0.00049863,120]
[377169720,1754266265487,-451.76,0.00049863,120]
[377169721,1754266265500,-400.0,0.00049863,120]
[377169722,1754266265509,-400.0,0.00049863,120]
[377169723,1754266265519,-774.41,0.00049863,120]
[377169724,1754266265528,-639.99,0.00049863,120]
[377169725,1754266265538,-400.0,0.00049863,120]
[377169726,1754266265548,-534.12751025,0.00049863,120]
[377169727,1754266265557,-652.16,0.00049863,120]
[377169728,1754266265567,-664.11,0.00049863,120]
[377169729,1754266265576,-400.0,0.00049863,120]
[377169730,1754266265585,-400.0,0.00049863,120]
[377169731,1754266265594,-965.13,0.00049863,120]
[377169732,1754266265604,-531.01,0.00049863,120]
[377169733,1754266265613,-696.53,0.00049863,120]
[377169734,1754266265622,-400.0,0.00049863,120]
[377169735,1754266265632,-742.04,0.00049863,120]
[377169736,1754266265641,-484.4,0.00049863,120]
[377169737,1754266265650,-400.0,0.00049863,120]
[377169738,1754266265660,-400.0,0.00049863,120]
[377169739,1754266265669,-400.0,0.00049863,120]
[377169740,1754266265679,-1036.76,0.00049863,120]
[377169741,1754266265688,-526.23,0.00049863,120]
[377169742,1754266265698,-400.0,0.00049863,120]
[377169743,1754266265707,-360.46,0.00049863,120]
[377169744,1754266265716,-695.08,0.00049863,120]
[377169745,1754266265725,-721.5,0.00049863,120]
[377169746,1754266265734,-428.3,0.00049863,120]
[377169747,1754266265744,-400.0,0.00049863,120]
[377169748,1754266265753,-400.0,0.00049863,120]
[377169749,1754266265763,-150.76596983,0.00049863,120]
[377169750,1754266265772,-363.83899597,0.00049863,120]
[377169751,1754266265781,-400.0,0.00049863,120]
[377169752,1754266265791,-793.8,0.00049863,120]
[377169753,1754266265800,-979.54,0.00049863,120]
[377169754,1754266265810,-653.53,0.00049863,120]
[377169755,1754266265819,-352.46948412,0.00049863,120]
[377169756,1754266265828,-400.0,0.00049863,120]
[377169757,1754266265837,-400.0,0.00049863,120]
[377169758,1754266265846,-530.82,0.00049863,120]
[377169759,1754266265855,-412.99,0.00049863,120]
[377169760,1754266265865,-400.0,0.00049863,120]
[377169761,1754266265874,-1088.89,0.00049863,120]
[377169762,1754266265883,-636.85,0.00049863,120]
[377169763,1754266265892,-400.0,0.00049863,120]
[377169764,1754266265901,-400.0,0.00049863,120]
[377169765,1754266265910,-400.0,0.00049863,120]
[377169766,1754266265920,-642.71,0.00049863,120]
[377169767,1754266265929,-472.66,0.00049863,120]
[377169768,1754266265938,-518.14,0.00049863,120]
[377169769,1754266265947,-400.0,0.00049863,120]
[377169770,1754266265956,-400.0,0.00049863,120]
[377169771,1754266265966,-400.0,0.00049863,120]
[377169772,1754266265975,-400.0,0.00049863,120]
[377169773,1754266265984,-400.0,0.00049863,120]
[377169774,1754266265994,-400.0,0.00049863,120]
[377169775,1754266266003,-400.0,0.00049863,120]
[377169776,1754266266012,-543.83657226,0.00049863,120]
[377169777,1754266266021,-1237.18,0.00049863,120]
[377169778,1754266266030,-400.0,0.00049863,120]
[377169779,1754266266039,-400.0,0.00049863,120]
[377169780,1754266266048,-589.66,0.00049863,120]
[377169781,1754266266058,-598.98,0.00049863,120]
[377169782,1754266266068,-400.0,0.00049863,120]
[377169783,1754266266078,-834.12,0.00049863,120]
[377169784,1754266266088,-474.21,0.00049863,120]
[377169785,1754266266098,-400.0,0.00049863,120]
[377169786,1754266266107,-824.86,0.00049863,120]
[377169787,1754266266117,-274.8222587,0.00049863,120]
[377169788,1754266266127,-527.51,0.00049863,120]
[377169789,1754266266136,-400.0,0.00049863,120]
[377169790,1754266266145,-613.0,0.00049863,120]
[377169791,1754266266155,-1159.81,0.00049863,120]
[377169792,1754266266164,-614.61,0.00049863,120]
[377169793,1754266266173,-400.0,0.00049863,120]
[377169794,1754266266182,-1017.09,0.00049863,30]
[377169795,1754266266195,-712.71,0.00049863,120]
[377169796,1754266266205,-1351.92,0.00049863,120]
[377169797,1754266266214,-1114.0,0.00049863,120]
[377169798,1754266266223,-400.0,0.00049863,120]
[377169799,1754266266233,-430.13,0.00049863,120]
[377169800,1754266266243,-400.0,0.00049863,120]
[377169801,1754266266252,-386.28298675,0.00049863,120]
[377169802,1754266266262,-511.91,0.00049863,120]
[377169803,1754266266272,-400.0,0.00049863,120]
[377169804,1754266266283,-400.0,0.00049863,120]
[377169805,1754266266292,-870.8,0.00049863,120]
[377169806,1754266266301,-400.0,0.00049863,120]
[377169807,1754266266310,-405.40696868,0.00049863,120]
[377169808,1754266266319,-690.24,0.00049863,120]
[377169809,1754266266328,-400.0,0.00049863,120]
[377169810,1754266266337,-888.12,0.00049863,120]
[377169811,1754266266347,-400.0,0.00049863,120]
[377169812,1754266266356,-552.02,0.00049863,120]
[377169813,1754266266365,-751.35,0.00049863,120]
[377169814,1754266266374,-400.0,0.00049863,120]
[377169815,1754266266383,-400.0,0.00049863,120]
[377169816,1754266266393,-795.25,0.00049863,120]
[377169817,1754266266402,-413.15,0.00049863,120]
[377169818,1754266266412,-1388.21,0.00049863,120]
[377169819,1754266266421,-551.22,0.00049863,120]
[377169820,1754266266430,-709.36,0.00049863,120]
[377169821,1754266266439,-974.26,0.00049863,120]
[377169822,1754266266449,-400.0,0.00049863,120]
[377169823,1754266266459,-400.0,0.00049863,120]
[377169824,1754266266468,-714.51,0.00049863,120]
[377169825,1754266266478,-187.70876307,0.00049863,120]
[377169826,1754266266487,-572.06,0.00049863,120]
[377169827,1754266266497,-400.0,0.00049863,120]
[377169828,1754266266506,-704.87,0.00049863,120]
[377169829,1754266266515,-401.31378262,0.00049863,120]
[377169830,1754266266525,-400.0,0.00049863,120]
[377169831,1754266266534,-400.0,0.00049863,120]
[377169832,1754266266542,-400.0,0.00049863,120]
[377169833,1754266266551,-901.25,0.00049863,120]
[377169834,1754266266560,-525.07,0.00049863,120]
[377169835,1754266266569,-499.3,0.00049863,120]
[377169836,1754266266579,-510.06,0.00049863,120]
[377169837,1754266266588,-400.0,0.00049863,120]
[377169838,1754266266597,-438.37,0.00049863,120]
[377169839,1754266266605,-400.0,0.00049863,120]
[377169840,1754266266614,-463.0,0.00049863,120]
[377169841,1754266266623,-400.0,0.00049863,120]
[377169842,1754266266632,-400.0,0.00049863,120]
[377169843,1754266266641,-529.56,0.00049863,120]
[377169844,1754266266650,-400.0,0.00049863,120]
[377169845,1754266266659,-698.43,0.00049863,120]
[377169846,1754266266668,-546.99,0.00049863,120]
[377169847,1754266266677,-400.0,0.00049863,120]
[377169848,1754266266686,-613.18,0.00049863,120]
[377169849,1754266266695,-706.54,0.00049863,120]
[377169850,1754266266705,-400.0,0.00049863,120]
[377169851,1754266266714,-400.0,0.00049863,120]
[377169852,1754266266723,-756.53,0.00049863,120]
[377169853,1754266266732,-918.39,0.00049863,120]
[377169854,1754266266742,-400.0,0.00049863,120]
[377169855,1754266266751,-400.0,0.00049863,120]
[377169856,1754266266762,-400.0,0.00049863,120]
[377169857,1754266266771,-400.0,0.00049863,120]
[377169858,1754266266781,-400.0,0.00049863,120]
[377169859,1754266266790,-400.0,0.00049863,120]
[377169860,1754266266798,-725.35,0.00049863,120]
[377169861,1754266266807,-1138.42,0.00049863,120]
[377169862,1754266266816,-415.19,0.00049863,120]
[377169863,1754266266825,-400.0,0.00049863,120]
[377169864,1754266266836,-543.93,0.00049863,120]
[377169865,1754266266847,-400.0,0.00049863,120]
[377169866,1754266266856,-429.97,0.00049863,120]
[377169867,1754266266866,-400.0,0.00049863,120]
[377169868,1754266266875,-587.28,0.00049863,120]
[377169869,1754266266884,-483.4,0.00049863,120]
[377169870,1754266266894,-602.09,0.00049863,120]
[377169871,1754266266903,-400.0,0.00049863,120]
[377169872,1754266266911,-534.14,0.00049863,120]
[377169873,1754266266920,-400.0,0.00049863,120]
[377169874,1754266266930,-400.0,0.00049863,120]
[377169875,1754266266939,-400.0,0.00049863,120]
[377169876,1754266266949,-713.71,0.00049863,120]
[377169877,1754266266959,-1102.62,0.00049863,120]
[377169878,1754266266969,-867.69,0.00049863,120]
[377169879,1754266266978,-575.69,0.00049863,120]
[377169880,1754266266988,-592.34,0.00049863,120]
[377169881,1754266266997,-622.42,0.00049863,120]
[377169882,1754266267006,-704.07,0.00049863,120]
[377169883,1754266267015,-700.23,0.00049863,120]
[377169884,1754266267024,-730.21,0.00049863,120]
[377169885,1754266267033,-400.0,0.00049863,120]
[377169886,1754266267042,-400.0,0.00049863,120]
[377169887,1754266267051,-400.0,0.00049863,120]
[377169888,1754266267060,-657.6,0.00049863,120]
[377169889,1754266267070,-400.0,0.00049863,120]
[377169890,1754266267079,-400.0,0.00049863,120]
[377169891,1754266267087,-596.56,0.00049863,120]
[377169892,1754266267097,-595.96,0.00049863,120]
[377169893,1754266267106,-400.0,0.00049863,120]
[377169894,1754266267115,-400.0,0.00049863,120]
[377169895,1754266267124,-400.0,0.00049863,120]
[377169896,1754266267133,-400.0,0.00049863,120]
[377169897,1754266267142,-400.0,0.00049863,120]
[377169898,1754266267151,-400.0,0.00049863,120]
[377169899,1754266267160,-606.08,0.00049863,120]
[377169900,1754266267169,-844.81,0.00049863,120]
[377169901,1754266267178,-991.17,0.00049863,120]
[377169902,1754266267189,-400.0,0.00049863,120]
[377169903,1754266267199,-407.92,0.00049863,120]
[377169904,1754266267207,-466.02745168,0.00049863,120]
[377169905,1754266267217,-400.0,0.00049863,120]
[377169906,1754266267226,-400.0,0.00049863,120]
[377169907,1754266267237,-400.0,0.00049863,120]
[377169908,1754266267246,-400.0,0.00049863,120]
[377169909,1754266267255,-400.0,0.00049863,120]
[377169910,1754266267264,-400.0,0.00049863,120]
[377169911,1754266267274,-426.56,0.00049863,120]
[377169912,1754266267283,-1080.54,0.00049863,120]
[377169913,1754266267292,-161.42193586,0.00049863,120]
[377169914,1754266267301,-400.0,0.00049863,120]
[377169915,1754266267311,-400.0,0.00049863,120]
[377169916,1754266267320,-1262.38,0.00049863,120]
[377169917,1754266267330,-400.0,0.00049863,120]
[377169918,1754266267339,-522.28,0.00049863,120]
[377169919,1754266267348,-400.0,0.00049863,120]
[377169920,1754266267358,-975.3,0.00049863,120]
[377169921,1754266267367,-527.59,0.00049863,120]
[377169922,1754266267376,-400.0,0.00049863,120]
[377169923,1754266267386,-899.43,0.00049863,120]
[377169924,1754266267395,-400.0,0.00049863,120]
[377169925,1754266267404,-400.0,0.00049863,30]
[377169926,1754266267414,-624.85,0.00049863,120]
[377169927,1754266267423,-682.22,0.00049863,120]
[377169928,1754266267432,-400.0,0.00049863,120]
[377169929,1754266267442,-400.0,0.00049863,120]
[377169930,1754266267451,-1206.85,0.00049863,120]
[377169931,1754266267461,-445.01,0.00049863,120]
[377169932,1754266267471,-400.0,0.00049863,120]
[377169933,1754266267480,-400.0,0.00049863,120]
[377169934,1754266267490,-400.0,0.00049863,120]
[377169935,1754266267500,-197.22646791,0.00049863,120]
[377169936,1754266267619,-841.86,0.00049863,120]
[377169937,1754266267629,-400.0,0.00049863,120]
[377169938,1754266267639,-400.0,0.00049863,120]
[377169939,1754266267649,-400.0,0.00049863,120]
[377169940,1754266267659,-400.0,0.00049863,120]
[377169941,1754266267668,-400.0,0.00049863,120]
[377169942,1754266267679,-986.7,0.00049863,120]
[377169943,1754266267688,-462.48,0.00049863,120]
[377169944,1754266267698,-809.38,0.00049863,120]
[377169945,1754266267708,-875.08,0.00049863,120]
[377169946,1754266267719,-400.0,0.00049863,120]
[377169947,1754266267730,-546.26,0.00049863,120]
[377169948,1754266267740,-3895.82,0.00049863,120]
[377169949,1754266267749,-874.57,0.00049863,120]
[377169950,1754266267759,-446.14,0.00049863,120]
[377169951,1754266267768,-400.0,0.00049863,120]
[377169952,1754266267777,-826.95,0.00049863,2]
[377169953,1754266267787,-712.49,0.00049863,120]
[377169954,1754266267796,-400.0,0.00049863,120]
[377169955,1754266267806,-400.0,0.00049863,7]
[377169956,1754266267815,-744.58,0.00049863,120]
[377169957,1754266267824,-410.44537689,0.00049863,120]
[377169958,1754266267834,-400.0,0.00049863,120]
[377169959,1754266267843,-400.0,0.00049863,120]
[377169960,1754266267852,-400.0,0.00049863,120]
[377169961,1754266267862,-400.0,0.00049863,120]
[377169962,1754266267871,-548.48,0.00049863,120]
[377169963,1754266267880,-400.0,0.00049863,120]
[377169964,1754266267890,-400.0,0.00049863,120]
[377169965,1754266267899,-400.0,0.00049863,120]
[377169966,1754266267908,-400.0,0.00049863,120]
[377169967,1754266267919,-611.64,0.00049863,120]
[377169968,1754266267928,-604.74,0.00049863,120]
[377169969,1754266267939,-660.69,0.00049863,120]
[377169970,1754266267948,-400.0,0.00049863,120]
[377169971,1754266267959,-400.0,0.00049863,120]
[377169972,1754266267970,-400.0,0.00049863,120]
[377169973,1754266267980,-400.0,0.00049863,120]
[377169974,1754266267990,-400.0,0.00049863,120]
[377169975,1754266268000,-400.0,0.00049863,120]
[377169976,1754266268009,-1483.13,0.00049863,120]
[377169977,1754266268018,-1412.34,0.00049863,120]
[377169978,1754266268028,-400.0,0.00049863,120]
[377169979,1754266268037,-400.0,0.00049863,120]
[377169980,1754266268046,-400.0,0.00049863,120]
[377169981,1754266268056,-1096.77,0.00049863,120]
[377169982,1754266268066,-400.0,0.00049863,120]
[377169983,1754266268075,-1008.09,0.00049863,120]
[377169984,1754266268085,-400.0,0.00049863,120]
[377169985,1754266268094,-535.30184119,0.00049863,120]
[377169986,1754266268103,-400.0,0.00049863,120]
[377169987,1754266268113,-400.0,0.00049863,120]
[377169988,1754266268122,-435.47,0.00049863,120]
[377169989,1754266268131,-732.16,0.00049863,120]
[377169990,1754266268141,-787.39,0.00049863,120]
[377169991,1754266268150,-400.0,0.00049863,120]
[377169992,1754266268161,-400.0,0.00049863,120]
[377169993,1754266268170,-495.52,0.00049863,120]
[377169994,1754266268179,-494.0347006,0.00049863,120]
[377169995,1754266268191,-257.41584862,0.00049863,120]
[377169996,1754266268201,-400.0,0.00049863,120]
[377169997,1754266268210,-536.41,0.00049863,120]
[377169998,1754266268220,-755.04,0.00049863,120]
[377169999,1754266268229,-980.28,0.00049863,120]
[377170000,1754266268239,-400.0,0.00049863,120]
[377170001,1754266268248,-713.47,0.00049863,120]
[377170002,1754266268259,-465.47,0.00049863,120]
[377170003,1754266268269,-514.06,0.00049863,120]
[377170004,1754266268279,-486.82,0.00049863,120]
[377170005,1754266268289,-400.0,0.00049863,120]
[377170006,1754266268298,-400.0,0.00049863,120]
[377170007,1754266268307,-414.45,0.00049863,120]
[377170008,1754266268317,-400.0,0.00049863,120]
[377170009,1754266268326,-400.0,0.00049863,120]
[377170010,1754266268336,-400.0,0.00049863,120]
[377170011,1754266268345,-400.0,0.00049863,120]
[377170012,1754266268355,-792.77,0.00049863,120]
[377170013,1754266268365,-272.90143939,0.00049863,120]
[377170014,1754266268374,-981.8,0.00049863,120]
[377170015,1754266268384,-300.5552248,0.00049863,120]
[377170016,1754266268393,-400.0,0.00049863,120]
[377170017,1754266268402,-400.0,0.00049863,120]
[377170018,1754266268412,-400.0,0.00049863,120]
[377170019,1754266268421,-400.0,0.00049863,120]
[377170020,1754266268431,-956.64,0.00049863,120]
[377170021,1754266268440,-477.55996885,0.00049863,120]
[377170022,1754266268450,-215.68981235,0.00049863,120]
[377170023,1754266268459,-724.66,0.00049863,120]
[377170024,1754266268469,-428.13,0.00049863,120]
[377170025,1754266268478,-525.48,0.00049863,120]
[377170026,1754266268487,-622.39,0.00049863,120]
[377170027,1754266268498,-510.92,0.00049863,120]
[377170028,1754266268507,-879.31,0.00049863,120]
[377170029,1754266268517,-400.0,0.00049863,120]
[377170030,1754266268526,-400.0,0.00049863,120]
[377170031,1754266268535,-400.0,0.00049863,120]
[377170032,1754266268545,-400.0,0.00049863,120]
[377170033,1754266268555,-749.13,0.00049863,120]
[377170034,1754266268565,-463.4297876,0.00049863,120]
[377170035,1754266268574,-400.0,0.00049863,120]
[377170036,1754266268585,-400.0,0.00049863,120]
[377170037,1754266268594,-414.07,0.00049863,120]
[377170038,1754266268603,-400.0,0.00049863,120]
[377170039,1754266268612,-1211.33,0.00049863,120]
[377170040,1754266268622,-565.42,0.00049863,120]
[377170041,1754266268631,-400.0,0.00049863,120]
[377170042,1754266268641,-400.0,0.00049863,120]
[377170043,1754266268650,-400.0,0.00049863,120]
[377170044,1754266268659,-400.0,0.00049863,120]
[377170045,1754266268669,-400.0,0.00049863,120]
[377170046,1754266268678,-627.86,0.00049863,120]
[377170047,1754266268687,-400.0,0.00049863,120]